Cogmind - Beta 15 @@@ ROGUE MODE // 2025.07.10 @ 19:35:37 Player: Cog on my mind Result: Destroyed by G3-1LM(R) with Subdweller Beam Cannon Performance ------------- Evolutions (0) 0 Regions Visited (3) 600 Robots Destroyed (25) 125 Value Destroyed (703) 703 Prototype IDs (0) 0 Alien Tech Used (0) 0 Bonus (0) 0 TOTAL SCORE: 1428 Bonus ------- None Cogmind --------- Core Integrity 0/250 Matter 275/300 Energy 15/200 System Corruption 0% Temperature Cool (9) Movement Core (600) Ox11 Location -10/Subcaves Parts ------- > --- POWER (1) -------- Subdweller Power Source > --- PROPULSION (2) --- (None) > --- UTILITY (2) ------ Disposable Heat Sink Large Storage Unit > --- WEAPON (2) ------- Subdweller Laser Subdweller Machine Gun > --- INVENTORY (15) --- Subdweller Power Source Subdweller Power Source High-capacity Storage Unit High-capacity Matter Pod (200) Subdweller Optics Subdweller Optics Subdweller Optics Seismic Detector Makeshift Light Armor Plating Makeshift Hacking Suite Subdweller Laser Makeshift Laser Grenade Launcher Rocket Launcher Subdweller Shrapnel Launcher Peak State ------------ > --- POWER ------------ Subdweller Power Source > --- PROPULSION ------- Spiked Treads Spiked Treads > --- UTILITY ---------- Disposable Heat Sink Large Storage Unit > --- WEAPON ----------- Makeshift Laser Subdweller Beam Cannon > --- INVENTORY -------- Subdweller Power Source Subdweller Power Source High-capacity Storage Unit High-capacity Matter Pod Subdweller Optics Subdweller Optics Seismic Detector Makeshift Light Armor Plating Makeshift Hacking Suite Subdweller Laser Subdweller Laser Particle Cannon Grenade Launcher Rocket Launcher Subdweller Shrapnel Launcher [Rating: 18] Favorites ----------- Power Subdweller Power Source Engine Subdweller Power Source Propulsion Light Treads Treads Light Treads Wheel Subdweller Monowheel Utility Large Storage Unit Device Seismic Detector Storage Large Storage Unit Weapon Particle Cannon Energy Gun EM Pulse Gun Energy Cannon Particle Cannon Ballistic Gun Subdweller Machine Gun Launcher Grenade Launcher Build | -11 -10 -10 -10 ------- Run | Yrd Mat Min Sub Slots Evolved . | . . . . Power . | . . . . Propulsion . | . . . . Utility . | . . . . Weapon . | . . . . Parts Attached 25 | 8 6 1 10 Power 3 | 1 1 . 1 Engine 3 | 1 1 . 1 Core . | . . . . Reactor . | . . . . Propulsion 6 | 2 1 . 3 Treads 5 | 2 1 . 2 Leg . | . . . . Wheel 1 | . . . 1 Hover . | . . . . Flight . | . . . . Utility 5 | 2 2 1 . Device 3 | 1 1 1 . Storage 2 | 1 1 . . Processor . | . . . . Hackware . | . . . . Protection . | . . . . Artifact . | . . . . Weapon 11 | 3 2 . 6 Energy Gun 5 | 3 . . 2 Energy Cannon 4 | . 2 . 2 Ballistic Gun 1 | . . . 1 Ballistic Cannon . | . . . . Launcher 1 | . . . 1 Special Weapon . | . . . . Impact Weapon . | . . . . Slashing Weapon . | . . . . Piercing Weapon . | . . . . Special Melee Weapon . | . . . . Unidentified Prototypes . | . . . . Parts Lost 6 | . 2 . 4 Power . | . . . . Propulsion 3 | . . . 3 Utility 1 | . 1 . . Weapon 2 | . 1 . 1 Highest Loss Streak 2 | . 1 . 2 To Critical Strikes . | . . . . Average Backups 13 | 2 11 15 14 Power 1 | . 1 1 1 Propulsion . | 1 2 1 . Utility 4 | . 2 4 6 Weapon 6 | . 6 8 6 Tool/Special . | . . . . Unused Backups 23 | . . 1 22 Power 3 | . . . 3 Propulsion 2 | . . 1 1 Utility 9 | . . . 9 Weapon 9 | . . . 9 Tool/Special . | . . . . Average Slot Usage (%) 98 | . 93 100 99 Engine 14 | . 14 14 14 Treads 25 | . 27 28 24 Wheel 1 | . . . 3 Device 13 | . 10 14 14 Storage 14 | . 15 14 14 Energy Gun 9 | . 19 . 8 Energy Cannon 17 | . 4 28 18 Peak Build Rating 18 | 7 12 12 18 Average Rating 12 | 5 8 11 15 On Entrance 7 | . 7 12 11 Naked Turns . | . . . . Heaviest Build 38 | 13 34 34 38 Greatest Support 40 | 40 40 40 40 Greatest Overweight (x) 8 | . 8 . 1 Average Overweight (x) . | . . . . Largest Inventory Capacity 15 | 8 15 15 15 Average Capacity 14 | 7 12 15 15 Most Carried 15 | 4 15 15 15 Average Carried 13 | 2 11 15 14 Final Capacity 15 | 8 15 15 15 Final Carried 15 | 4 15 15 15 Class Distribution -------------------- 91% | Mutant 8% | Derelict-Mutant Dominant Class ---------------- Mutant | -10/Materials Mutant | -10/Mines Mutant | -10/Subcaves Resources | -11 -10 -10 -10 ----------- Run | Yrd Mat Min Sub Matter Collected 820 | 282 328 30 180 Remotely . | . . . . Salvage Created 1019 | 48 499 98 374 Parts 53 | 2 24 6 21 Haulers Intercepted 2 | . 2 . . Recyclers Shooed 2 | 1 1 . . Parts Field Recycled . | . . . . Retrieved Matter . | . . . . Parts Self-Destructed 9 | . . . 9 Prevented . | . . . . Kills | -11 -10 -10 -10 ------- Run | Yrd Mat Min Sub Combat Hostiles Destroyed 18 | . 6 2 10 Guns 8 | . 3 . 5 Cannons 5 | . 2 1 2 AOE 3 | . 1 . 2 Classes Destroyed 8 | 1 4 1 2 Builder 1 | . . 1 . Tunneler 2 | 2 . . . Hauler 2 | . 2 . . Recycler 1 | . 1 . . Watcher 1 | . 1 . . Swarmer 2 | . . . 2 Grunt 8 | . 6 2 . Subdweller 8 | . . . 8 Best Kill Streak 3 | 1 3 2 2 Combat Bots Only 3 | . 3 2 2 Max Kills in Single Turn 1 | 1 1 1 1 Gunslinging . | . . . . Exploded 1 | . 1 . 1 Melee . | . . . . Uniques/NPCs Destroyed . | . . . . Combat | -11 -10 -10 -10 -------- Run | Yrd Mat Min Sub Hostile Shots Fired 105 | . 32 13 60 Missed 31 | . 11 6 14 Hits 74 | . 21 7 46 Projectile 74 | . 21 7 46 AOE 2 | . . . 2 Critical Strikes 2 | . . . 2 Damage Taken 1412 | . 343 98 971 Core 255 | . 69 12 174 Absorbed by Shields . | . . . . Core Remaining (%) 100 | 100 . . . Volleys Fired 118 | 9 41 7 61 Largest 2 | 2 2 2 2 Hottest 230 | 80 136 136 230 Shots Fired 178 | 11 65 14 88 Gun 98 | 11 57 . 30 Cannon 77 | . 8 14 55 Launcher 3 | . . . 3 Special . | . . . . Kinetic 5 | . . . 5 Thermal 109 | 7 8 14 80 Explosive 3 | . . . 3 Electromagnetic 61 | 4 57 . . Robot Hit Streak 26 | 5 6 10 26 Robot Miss Streak 4 | 3 4 2 2 Penetration Max . | . . . . Secondary Targets . | . . . . Shots Hit Robots 93 | 7 37 10 39 Core Hits 29 | 2 14 2 11 Critical Kills 2 | . . 1 1 Critical Parts Destroyed . | . . . . Critical Strikes 8 | . 1 1 6 Burn 5 | . . . 5 Meltdown 2 | . . 1 1 Corrupt 1 | . 1 . . Melee Attacks . | . . . . Impact . | . . . . Slashing . | . . . . Piercing . | . . . . Sneak Attacks . | . . . . Combat Hostiles . | . . . . Follow-up Attacks . | . . . . Damage Inflicted 2164 | 89 767 220 1088 Guns 1065 | 89 533 . 443 Cannons 835 | . 105 220 510 Explosions 264 | . 129 . 135 Melee . | . . . . Ramming . | . . . . Kinetic 69 | . . . 69 Thermal 1384 | 46 234 220 884 Explosive 135 | . . . 135 Electromagnetic 576 | 43 533 . . Impact . | . . . . Slashing . | . . . . Piercing . | . . . . Highest Corruption . | . . . . Average Corruption . | . . . . Corruption Purged . | . . . . Corruption Blocked . | . . . . Overload Shots 8 | . . . 8 Effects 2 | . . . 2 Energy Bleed 2 | . . . 2 Overflow Damage 52 | . 29 1 22 Projectiles 1 | . . 1 . Explosions 51 | . 29 . 22 Melee . | . . . . Knockbacks . | . . . . Impact . | . . . . Kinetic . | . . . . Secondary . | . . . . Self-Inflicted Damage 86 | . 65 . 21 Shots 3 | . 2 . 1 Rammed . | . . . . Targets Rammed . | . . . . Kicked . | . . . . Crushed . | . . . . Highest Temperature 199 | 36 196 199 197 Average Temperature 76 | 20 81 106 61 Received Heat Transfer 423 | . 135 57 231 Siege Activations . | . . . . Martial Activations . | . . . . Shielding Activations . | . . . . Robots Disrupted . | . . . . Combat Hostiles . | . . . . Robots Corrupted . | . . . . Combat Hostiles . | . . . . Parts Fried 2 | 1 1 . . Impact Corruptions . | . . . . Robots Melted 2 | . . 1 1 Combat Hostiles 2 | . . 1 1 Parts Melted 7 | . . 1 6 Heat Transferred 2679 | 100 385 370 1824 Parts Sabotaged . | . . . . Parts Stolen . | . . . . Parts Stripped . | . . . . Power Chain Reactions 4 | . 4 . . Alert | -11 -10 -10 -10 ------- Run | Yrd Mat Min Sub Maximum Alert Level . | . . . . Low Security (%) 100 | 100 100 100 . Level 1 . | . . . . Level 2 . | . . . . Level 3 . | . . . . Level 4 . | . . . . Level 5 . | . . . . High Security . | . . . . Max Security . | . . . . Peak Influence 57 | 5 57 50 . Initial 6 | . . 6 . Average 8 | . 16 3 . Influence Increases 362 | 10 227 55 70 Destroy 0b10 Robot/C 200 | . 120 40 40 Destroy 0b10 Robot/NC 35 | 10 20 5 . Destroy Leader 46 | . 36 10 . Successful Hack 5 | . 5 . . Disable Machine 30 | . 30 . . Destroy Structure 16 | . 16 . . Lose Combat Pursuer 30 | . . . 30 Influence Decreases 362 | 10 210 72 70 Entered New Map 11 | . . 11 . Time Decay 341 | 10 200 61 70 Lost Part 10 | . 10 . . Squads Dispatched 3 | . 3 . . Investigation 2 | . 2 . . Extermination . | . . . . Reinforcement 1 | . 1 . . Assault . | . . . . Garrison . | . . . . Intercept . | . . . . Searches Triggered . | . . . . Construction Impeded . | . . . . Haulers Reinforced . | . . . . Active Scanning Responses . | . . . . Cargo Convoy Interrupts . | . . . . Stealth | -11 -10 -10 -10 --------- Run | Yrd Mat Min Sub Distress Signals . | . . . . Communications Jammed . | . . . . Distress Signals . | . . . . Times Spotted 28 | . 13 2 13 Peak Tracking Total 6 | . 4 2 6 Tactical Retreats 1 | . . . 1 Traps | -11 -10 -10 -10 ------- Run | Yrd Mat Min Sub Traps Triggered 8 | . 6 . 2 Indirectly . | . . . . Trap Hack Attempts . | . . . . Triggered . | . . . . Disarmed . | . . . . Reprogrammed . | . . . . Reused . | . . . . Traps Extracted . | . . . . Installed . | . . . . Triggered . | . . . . Machines | -11 -10 -10 -10 ---------- Run | Yrd Mat Min Sub Machines Disabled 2 | . 2 . . Max in Single Turn 1 | . 1 . . Machines Repaired . | . . . . Machines Dismantled . | . . . . Machines Sabotaged . | . . . . Overloaded Fab Kills . | . . . . Hacking | -11 -10 -10 -10 --------- Run | Yrd Mat Min Sub Machines Accessed 6 | . 4 . 2 Terminals 3 | . 3 . . Fabricators . | . . . . Repair Stations . | . . . . Recycling Units 1 | . 1 . . Scanalyzers . | . . . . Garrison Access . | . . . . Total Hacks 13 | . 10 . 3 Successful 5 | . 2 . 3 Failed 8 | . 8 . . Catastrophic 1 | . 1 . . Database Lockouts . | . . . . Manual 7 | . 7 . . Terminals 7 | . 7 . . Fabricators . | . . . . Repair Stations . | . . . . Recycling Units 3 | . 3 . . Scanalyzers . | . . . . Garrison Access . | . . . . Terminal Hacks 4 | . 1 . 3 Record 1 | . . . 1 Robot Analysis 1 | . 1 . . Open Door 1 | . . . 1 Release Object 1 | . . . 1 Fabricator Hacks . | . . . . Repair Station Hacks . | . . . . Recycling Unit Hacks . | . . . . Scanalyzer . | . . . . Garrison Access Hacks . | . . . . Unauthorized Hacks 1 | . 1 . . Terminals 1 | . 1 . . Botnet 1 | . 1 . . Fabricators . | . . . . Repair Stations . | . . . . Recycling Units . | . . . . Scanalyzers . | . . . . Garrison Access . | . . . . Data Cores Recovered . | . . . . Used . | . . . . Hacking Detections 4 | . 4 . . Full Trace Events 1 | . 1 . . Feedback Events . | . . . . Feedback Blocked . | . . . . Robot Schematics Acquired . | . . . . Robots Built . | . . . . Authchips . | . . . . Time . | . . . . Total Robot Build Rating . | . . . . Part Schematics Acquired . | . . . . Parts Built . | . . . . Authchips . | . . . . Time . | . . . . Total Part Build Rating . | . . . . Parts Repaired . | . . . . Time . | . . . . Parts Recycled . | . . . . Recycled Matter . | . . . . Retrieved Matter . | . . . . Retrieved Components . | . . . . Parts Scanalyzed . | . . . . Part Schematics Acquired . | . . . . Parts Damaged . | . . . . Bothacking | -11 -10 -10 -10 ------------ Run | Yrd Mat Min Sub Used RIF Installer . | . . . . Robots Hacked . | . . . . Non-combat . | . . . . Combat . | . . . . Robot Hacks Applied . | . . . . Relay Couplers Released . | . . . . Fabnet Peak Effective % . | . . . . Robots Rewired . | . . . . Allies Hacked . | . . . . Hacks Repelled . | . . . . Allies | -11 -10 -10 -10 -------- Run | Yrd Mat Min Sub Total Allies . | . . . . Largest Group . | . . . . Highest-Rated Group . | . . . . Highest-Rated Ally . | . . . . Total Orders . | . . . . Ally Attacks . | . . . . Total Damage . | . . . . Kills . | . . . . Allies Corrupted . | . . . . Allies Melted . | . . . . Intel | -11 -10 -10 -10 ------- Run | Yrd Mat Min Sub Active Infowar (turns) 2535 | 25 110 743 1657 Seismic 2535 | 25 110 743 1657 Robot Analysis Total 1 | . 1 . . Derelict Logs Recovered 2 | . . 1 1 Drone Launches . | . . . . Drone Recoveries . | . . . . Exploration | -11 -10 -10 -10 ------------- Run | Yrd Mat Min Sub Turns Passed 3722 | 142 778 777 2025 Spaces Moved 2133 | 68 389 464 1212 Core 7 | 6 1 . . Treads 1762 | 62 388 464 848 Legs . | . . . . Wheels 364 | . . . 364 Hover . | . . . . Flight . | . . . . Fastest Speed 50 | 50 160 160 120 Average Speed 153 | 150 161 160 148 Slowest Speed 450 | 160 450 160 260 Overloaded Moves . | . . . . Propulsion Burnouts . | . . . . Robots Hopped . | . . . . Potential Cave-ins . | . . . . Cave-ins Triggered . | . . . . Exploration Rate (%) 60 | 4 67 97 74 Regions Visited 3 Branch Regions 2 Pre-discovered Areas 1 | . . . 1 Known Exits Taken . | . . . . Unknown Exits Taken 3 | 1 1 1 . Scrap Searched 11 | . . 3 8 Spaces Dug 9 | . . . 9 Terrain Destroyed 35 | . 14 . 21 Melee . | . . . . Projectile 13 | . . . 13 AOE 22 | . 14 . 8 Terrain Rammed . | . . . . Walls Destroyed . | . . . . Machines Disabled . | . . . . Actions | -11 -10 -10 -10 --------- Run | Yrd Mat Min Sub Total 2397 | 92 472 484 1349 Wait 51 | 3 11 9 28 Move 2130 | 67 388 463 1212 Hop . | . . . . Pick Up 33 | 4 14 1 14 Fast Attach 19 | 7 9 . 3 Attach 4 | . 2 . 2 Detach . | . . . . Swap 20 | 2 2 3 13 Drop 22 | . 5 1 16 Fire 118 | 9 41 7 61 Melee . | . . . . Ram . | . . . . Kick . | . . . . Crush . | . . . . Escape Stasis . | . . . . Rewire . | . . . . Trap . | . . . . Miscellaneous . | . . . . Route ------- -11/Scrapyard -10/Materials (discovered 5 exits: [*Mat x3] / [*Min x2]) -10/Mines (discovered 4 exits: [*Mat x2] / [*Exi] / *Sub) -10/Subcaves (discovered 1 exit: [*Mat]) History --------- Turn | Location | Event 17 | -11/Scrapyard | Discovered new exit (range 16) 143 | -11/Scrapyard | Entered Materials 312 | -10/Materials | Build established: Mutant 417 | -10/Materials | Discovered new exit (range 5) 674 | -10/Materials | Discovered new exit (range 10) 675 | -10/Materials | Discovered new exit (range 16) 849 | -10/Materials | Discovered new exit (range 6) 881 | -10/Materials | Discovered new exit (range 16) 921 | -10/Materials | Entered Mines 1017 | -10/Mines | Received a Rocket Launcher from a helpful Derelict 1128 | -10/Mines | Found a Scrap Suit stashed away for nefarious purposes 1265 | -10/Mines | Learned Materials machine intel 1273 | -10/Mines | Discovered new exit (range 13) 1359 | -10/Mines | Deemed a non-threat by the Exiles lab entrance 1359 | -10/Mines | Discovered new exit (range 5) 1501 | -10/Mines | Discovered new exit (range 14) 1689 | -10/Mines | Discovered new exit (range 6) 1698 | -10/Mines | Entered Subcaves 1825 | -10/Subcaves | Shifting Twisted Machinery released Spk. Treads 1846 | -10/Subcaves | Shifting Twisted Machinery released Sub. Power Source 1981 | -10/Subcaves | Learned location of Zion (-6) 1981 | -10/Subcaves | Met a Zionite searching for "candidates" 2241 | -10/Subcaves | Shifting Twisted Machinery released Sub. Beam Cannon 2251 | -10/Subcaves | Shifting Twisted Machinery released Battle Rifle 2326 | -10/Subcaves | Core integrity fell below 50% 2390 | -10/Subcaves | A swath of the cavern ceiling suddenly collapsed 2561 | -10/Subcaves | A swath of the cavern ceiling suddenly collapsed 2649 | -10/Subcaves | Learned Materials stockpile data 3069 | -10/Subcaves | Discovered new exit (range 13) 3156 | -10/Subcaves | Disturbed a concealed Subdweller 3373 | -10/Subcaves | Ambushed by Subdweller buried in earth 3671 | -10/Subcaves | Build established: Derelict-Mutant 3702 | -10/Subcaves | Core integrity fell below 20% 3723 | -10/Subcaves | Destroyed by G3-1LM(R) with Subdweller Beam Cannon Last Messages --------------- 03380_ Sub. Beam Cannon destroyed. 03383_ 0G-X49(R) suffers critical hit (Burn). 03383_ Scrap Shield melted. 03383_ 0G-X49(R) destroyed. 03386_ Acquired 20 matter. 03391_ Acquired Sub. Optics. 03397_ The unstable cave ceiling collapses. 03397_ 13 Matter crushed. 03489_ Subatomizers dissect the Broken Sub. Monowheel, destroying it. 03661_ Acquired 5 matter. 03701_ Overload: Energy bleed (-50). 03701_ C3-MKY(R) suffers critical hit (Burn). 03704_ Sub. Power Source melted. 03704_ Disposable Heat Sink melted. 03704_ C3-MKY(R) destroyed. 03712_ G3-1LM(R) affixes Scrap Shield Fragment to Scrap Shield. 03721_ Spk. Treads destroyed. Map ----- +----------------------------------------------------+ | ?????????????????????????????????????????????????? | | ?????????????????????????????????????????????????? | | ?????????????????????????????????????????????????? | | ?????????????????????????????????????????????????? | | ?????????????????????????????????????????????????? | | ?????????????????????????????????????????????????? | | ?????????????????????????????????????????????????? | | ?????????????????????????????????????????????????? | | ?????????????????????????????????????????????????? | | ?????????????????????????????????????????????????? | | ?????????????????????????????????????????????????? | | ?????????????????????????????????????????????????? | | ?????????????????????????????????????????????????? | | ?????????????????????????????????????????????????? | | ?????????????? ??????????????????????????????????? | | ?????????????? ?????????????????????????????????? | | ?????????????? ##??????????????????????????????? | | ??????????????? #????????????????? ???????????? | | ???????????????? ########??????## "???????????? | | ?????????????????# # # #####? ????????????? | | ???????????????#??# ; ;# ??????????????? | | ??????????????## #; ????????????????? | | ??????????????# ; ;#?????????????????? | | ??????????????# #?????????????????? | | ??????????????# ; #?????????????????? | | ??????????????# & %% @ ;##????????????????? | | ??????????????#&% ;;; ;##??????????????? | | ?????????????# R ; #??????????????? | | ????????????# ;####; #??????????????? | | ??????????? ????### ; ##?????????????? | | ???????????? ## ???????# ### #?????????????? | | ???????????? ???#????????# #?# #?????????????? | | ?????????????????????????# ### #?????????????? | | ???????????? ???????????## # ##?????????????? | | ??????????? ??????????## #?????????????? | | ???????????? ????????# ###?????????????? | | ???????????? ???????### #??????????????? | | ???????????? ####????## ##?????????????? | | ??????????????? ###??#### #?????????????? | | ?????????????????? ###???## #?????????????? | | ?????????????????????# #???## ######????????? | | ??????????????????????# ##### #????????? | | ??????????????????????### ## #????????? | | ????????????????????????# "## #????????? | | ????????????????????????# "## #????????? | | ???????????????????????## "# #????????? | | ??????????????????????## #" % ##??###??## | | ??????????????????????# ##""" ##### #### | | ??????????????????????# ##""" | | ??????????????????????### | +----------------------------------------------------+ Best States ------------- Heat Dissipation 25 Coolant Potential 50 Energy Generation 15 Energy Capacity 250 Matter Stores 300 Matter Capacity 300 Sight Range 16 Terrain Scan Density 10 Evasion (%) 40 Recoil Reduction 2 Item Schematics ----------------- None Robot Schematics ------------------ None Fabricated ------------ Nothing Repaired ---------- Nothing Alien Tech Used ----------------- None Achievements -------------- None Challenges ------------ None Game ------ Seed SapperStructuralSteel Manual? 0 Play Time 00:22:06 Cumulative 509.8 hours Start 2025.07.10 @ 19:13:09 End 2025.07.10 @ 19:35:37 Sessions 1 Manual Loads 0 Difficulty Rogue Special Mode None Game No. 111 Rogue 111 Adventurer 0 Explorer 0 Win Type - Total 36 Types 17/1/8/1/1/0/3/3/1/1 Lore% 91 Gallery% 80 Achievement% 82 Wizard Run 0 Options --------- Layout 1 ASCII 0 Keyboard 0 Movement Mouse Keybinds 0 Fullscreen 1 Font 24/Smallcaps Map View 50x35 Zoom Use 0% Tactical HUD 1 Map Filters NONE Filters NONE Steam 1 RUN: fb53a361-3a4d-4e16-8bea-63ee56d9f979